fUSD/lending_fUSD_20260127
["ID","MTS","AMOUNT","RATE_DAILY","PERIOD"]
[403693731,1769489284195,-317.9260501,0.00015338,2]
[403693732,1769489287480,-296.67228426,0.00015338,2]
[403693733,1769489290186,-821.94509455,0.00015338,2]
[403693734,1769489294236,-300.0,0.00015338,2]
[403693735,1769489302336,-165.26725566,0.00015338,2]
[403693736,1769489304290,-203.84201728,0.00015338,2]
[403693737,1769489305890,-479.43231453,0.00015338,2]
[403693738,1769489309031,-573.22499205,0.00015338,2]
[403693739,1769489310596,-333.71542829,0.00015338,2]
[403693740,1769489314029,-269.12598303,0.00015337,2]
[403693741,1769489317751,-187.57386683,0.00015337,2]
[403693743,1769489322412,-43.30015014,0.00015337,2]
[403693745,1769489322435,-324.69932536,0.00015337,2]
[403693746,1769489322456,-130.40229004,0.00015337,2]
[403693751,1769489326282,-369.59770996,0.00015337,2]
[403693752,1769489326303,-12.56425351,0.00015337,2]
[403693753,1769489328914,-165.95799728,0.00015337,2]
[403693754,1769489331908,-21.09199167,0.00015337,2]
[403693755,1769489331930,-131.88015978,0.00015337,2]
[403693756,1769489335048,-204.78769654,0.00015337,2]
[403693757,1769489335075,-35.34135964,0.00015338,2]
[403693758,1769489337828,-551.28227427,0.00015338,2]
[403693759,1769489341224,-357.84889641,0.00015338,2]
[403693760,1769489344606,-240.68893856,0.00015338,2]
[403693761,1769489347249,-306.16326021,0.00015338,2]
[403693762,1769489349514,-151.0,0.00015335,2]
[403693763,1769489349539,-151.0,0.00015335,2]
[403693764,1769489349571,-423.31491415,0.00015338,2]
[403693765,1769489351226,-189.91285581,0.00015338,2]
[403693766,1769489352685,-170.56030923,0.00015338,2]
[403693767,1769489354186,-160.95252468,0.00015338,2]
[403693768,1769489356862,-189.53517489,0.00015338,2]
[403693769,1769489358878,-220.90167977,0.00015338,2]
[403693770,1769489360463,-241.87920367,0.00015338,2]
[403693771,1769489365608,-308.81049488,0.00015338,2]
[403693772,1769489367383,-295.06693158,0.00015338,2]
[403693773,1769489369470,-383.43904151,0.00015338,2]
[403693774,1769489372697,-153.8599972,0.00015338,2]
[403693775,1769489374769,-200.0,0.00015338,2]
[403693776,1769489377484,-192.72668879,0.00015338,2]
[403693777,1769489383431,-244.04452484,0.00015338,2]
[403693778,1769489386131,-350.79647758,0.00015338,2]
[403693779,1769489388863,-191.61455368,0.00015338,2]
[403693780,1769489391582,-182.4341895,0.00015338,2]
[403693781,1769489393075,-373.58055191,0.00015338,2]
[403693782,1769489397499,-315.73649027,0.00015338,2]
[403693783,1769489399095,-271.06741652,0.00015338,2]
[403693784,1769489401958,-300.0,0.00015337,2]
[403693785,1769489401981,-198.53976258,0.00015337,2]
[403693786,1769489407694,-101.46023742,0.00015337,2]
[403693787,1769489407721,-60.48696818,0.00015337,2]
[403693788,1769489412758,-484.0,0.00015337,2]
[403693789,1769489414241,-244.80789902,0.00015337,2]
[403693790,1769489416839,-242.19009432,0.00015337,2]
[403693791,1769489417951,-168.51503848,0.00015337,2]
[403693792,1769489417981,-57.95007875,0.00015338,2]
[403693793,1769489420677,-303.6764657,0.00015338,2]
[403693794,1769489422310,-469.16493082,0.00015338,2]
[403693795,1769489426807,-303.94894007,0.00015338,2]
[403693796,1769489430164,-165.93834011,0.00015338,2]
[403693802,1769489431446,-49347.42327621,0.00015338,2]
[403693803,1769489431502,-15552.43242131,0.00015338,2]
[403693804,1769489431515,-8745.22102089,0.00015338,2]
[403693805,1769489431676,-302.04407022,0.00015338,2]
[403693885,1769489432499,-225.08216547,0.00015338,2]
[403693908,1769489436450,-280.0356392,0.00015338,2]
[403693912,1769489437636,-1127.33206643,0.00015338,2]
[403693933,1769489438400,-248.65015944,0.00015338,2]
[403693935,1769489439630,-898509.49972663,0.00015338,2]
[403693936,1769489439640,-3092.7456,0.00015338,2]
[403693937,1769489439649,-58.30064956,0.00015418,2]
[403693938,1769489439659,-150.0,0.00015418,2]
[403693939,1769489439668,-500.0,0.00015429,2]
[403693940,1769489439679,-151.0,0.00015429,2]
[403693941,1769489439688,-151.0,0.00015429,2]
[403693942,1769489439697,-151.0,0.00015429,2]
[403693943,1769489439706,-200.0,0.00015429,2]
[403693944,1769489439715,-151.0,0.00015429,2]
[403693945,1769489439724,-151.0,0.00015429,2]
[403693946,1769489439734,-151.0,0.00015429,2]
[403693947,1769489439743,-151.0,0.00015429,2]
[403693948,1769489439752,-1550.1280125,0.00015435,2]
[403693949,1769489439761,-600.40964335,0.00015437,2]
[403693950,1769489439771,-500.0,0.00015437,2]
[403693951,1769489439780,-500.0,0.00015437,2]
[403693952,1769489439790,-500.0,0.00015437,2]
[403693953,1769489439800,-500.0,0.00015437,2]
[403693954,1769489439811,-376.65894444,0.00015438,2]
[403693955,1769489439822,-196.36905096,0.00015438,2]
[403693956,1769489439833,-500.0,0.00015473,2]
[403693957,1769489439842,-150.0,0.00015473,2]
[403693958,1769489439851,-500.0,0.00015527,2]
[403693959,1769489439861,-150.0,0.00015527,2]
[403693960,1769489439871,-159.0332,0.00015538,2]
[403693961,1769489439880,-500.0,0.00015582,2]
[403693962,1769489439888,-200.63139029,0.00015582,2]
[403693963,1769489439897,-150.00281334,0.00015599,2]
[403693964,1769489439906,-500.0,0.00015637,2]
[403693965,1769489439915,-500.0,0.00015637,2]
[403693966,1769489439924,-500.0,0.00015637,2]
[403693967,1769489439934,-500.0,0.00015637,2]
[403693968,1769489439943,-500.0,0.00015637,2]
[403693969,1769489439953,-500.0,0.00015637,2]
[403693970,1769489439963,-500.0,0.00015637,2]
[403693971,1769489439978,-500.0,0.00015637,2]
[403693973,1769489439986,-500.0,0.00015637,2]
[403693975,1769489439995,-500.0,0.00015637,2]
[403693976,1769489440005,-500.0,0.00015637,2]
[403693977,1769489440014,-433.42701788,0.00015637,2]
[403693978,1769489440023,-500.0,0.00015637,2]
[403693979,1769489440032,-500.0,0.00015637,2]
[403693981,1769489440042,-500.0,0.00015637,2]
[403693982,1769489440051,-500.0,0.00015637,2]
[403693983,1769489440060,-500.0,0.00015637,2]
[403693984,1769489440070,-500.0,0.00015637,2]
[403693986,1769489440374,-500.0,0.00015637,2]
[403693987,1769489440384,-500.0,0.00015637,2]
[403693988,1769489440394,-500.0,0.00015637,2]
[403693989,1769489440403,-500.0,0.00015637,2]
[403693990,1769489440412,-502.30044684,0.00015637,2]
[403693991,1769489440421,-500.0,0.00015637,2]
[403693992,1769489440429,-500.0,0.00015637,2]
[403693993,1769489440439,-500.0,0.00015637,2]
[403693994,1769489440448,-500.0,0.00015637,2]
[403693995,1769489440457,-500.0,0.00015637,2]
[403693996,1769489440466,-500.0,0.00015637,2]
[403693997,1769489440476,-500.0,0.00015637,2]
[403693998,1769489440485,-500.0,0.00015637,2]
[403693999,1769489440495,-500.0,0.00015637,2]
[403694000,1769489440505,-500.0,0.00015637,2]
[403694001,1769489440515,-500.0,0.00015637,2]
[403694002,1769489440524,-500.0,0.00015637,2]
[403694003,1769489440540,-507.85308391,0.00015637,2]
[403694004,1769489440549,-500.0,0.00015637,2]
[403694005,1769489440558,-500.0,0.00015637,2]
[403694006,1769489440567,-500.0,0.00015637,2]
[403694007,1769489440576,-511.43170283,0.00015637,2]
[403694008,1769489440585,-500.0,0.00015637,2]
[403694009,1769489440595,-500.0,0.00015637,2]
[403694010,1769489440604,-500.0,0.00015637,2]
[403694011,1769489440613,-500.0,0.00015637,2]
[403694012,1769489440622,-500.0,0.00015637,2]
[403694013,1769489440632,-500.0,0.00015637,2]
[403694014,1769489440641,-500.0,0.00015637,2]
[403694015,1769489440649,-500.0,0.00015637,2]
[403694016,1769489440659,-500.0,0.00015637,3]
[403694017,1769489440668,-500.0,0.00015637,4]
[403694018,1769489440677,-500.0,0.00015637,5]
[403694019,1769489440686,-500.0,0.00015637,2]
[403694020,1769489440696,-500.0,0.00015637,2]
[403694021,1769489440705,-500.0,0.00015637,2]
[403694022,1769489440714,-500.0,0.00015637,2]
[403694023,1769489440723,-500.0,0.00015637,2]
[403694024,1769489440733,-500.0,0.00015637,2]
[403694025,1769489440742,-500.0,0.00015637,2]
[403694026,1769489440751,-500.0,0.00015637,2]
[403694027,1769489440761,-500.0,0.00015637,2]
[403694028,1769489440770,-500.0,0.00015637,2]
[403694029,1769489440780,-500.0,0.00015637,2]
[403694030,1769489440790,-514.76236774,0.00015637,2]
[403694031,1769489440800,-500.0,0.00015637,2]
[403694032,1769489440812,-500.0,0.00015637,2]
[403694033,1769489440822,-500.0,0.00015637,2]
[403694034,1769489440833,-503.87448649,0.00015637,2]
[403694035,1769489440843,-500.0,0.00015637,2]
[403694036,1769489440853,-500.0,0.00015637,2]
[403694037,1769489440862,-500.0,0.00015637,2]
[403694038,1769489440872,-506.5749784,0.00015637,2]
[403694039,1769489440881,-500.0,0.00015637,2]
[403694040,1769489440890,-500.0,0.00015637,2]
[403694041,1769489440900,-500.0,0.00015637,2]
[403694042,1769489440909,-500.0,0.00015637,2]
[403694043,1769489440918,-253.11506529,0.00015637,2]
[403694044,1769489440928,-500.0,0.00015637,2]
[403694045,1769489440937,-500.0,0.00015637,2]
[403694046,1769489440946,-500.0,0.00015637,2]
[403694047,1769489440955,-500.0,0.00015637,2]
[403694048,1769489440969,-151.0,0.0001564,2]
[403694049,1769489440984,-151.0,0.00015641,2]
[403694050,1769489440993,-151.0,0.00015641,2]
[403694051,1769489441003,-151.0,0.00015643,2]
[403694052,1769489441015,-1067.33005661,0.00015654,2]
[403694053,1769489441025,-1745.0,0.00015683,2]
[403694054,1769489441034,-500.0,0.00015692,2]
[403694055,1769489441044,-1745.0,0.0001573,2]
[403694056,1769489441054,-371.0,0.00015731,2]
[403694057,1769489441063,-500.0,0.00015747,2]
[403694058,1769489441073,-305.0,0.00015762,2]
[403694059,1769489441082,-500.0,0.00015801,2]
[403694060,1769489441092,-155.0,0.00015842,2]
[403694061,1769489441101,-500.0,0.00015856,2]
[403694062,1769489441110,-500.0,0.00015911,2]
[403694063,1769489441119,-1067.33005661,0.00015935,2]
[403694064,1769489441128,-150.0,0.00015938,2]
[403694065,1769489441137,-500.0,0.00015966,2]
[403694066,1769489441147,-1195.03,0.00016,2]
[403694067,1769489441156,-500.0,0.00016021,2]
[403694068,1769489441165,-376.6589444,0.00016045,2]
[403694069,1769489441175,-196.36905092,0.00016054,2]
[403694070,1769489441185,-500.0,0.00016075,2]
[403694071,1769489441195,-500.0,0.0001613,2]
[403694072,1769489441204,-166.67,0.00016183,2]
[403694073,1769489441214,-500.0,0.00016185,2]
[403694074,1769489441223,-1067.33005661,0.00016215,2]
[403694075,1769489441232,-500.0,0.0001624,2]
[403694076,1769489441241,-1000.0,0.00016261,2]
[403694077,1769489441250,-572.0,0.00016295,2]
[403694078,1769489441259,-500.0,0.00016438,2]
[403694079,1769489441269,-500.0,0.00016438,2]
[403694080,1769489441286,-500.0,0.00016438,2]
[403694081,1769489441295,-500.0,0.00016438,2]
[403694082,1769489441304,-245.32939971,0.00016438,2]
[403694083,1769489441313,-367.84,0.00016455,2]
[403694084,1769489441323,-1067.33005661,0.00016496,2]
[403694085,1769489441332,-215.08275207,0.00016514,2]
[403694086,1769489441342,-376.6589444,0.00016651,2]
[403694087,1769489441351,-196.36905092,0.00016669,2]
[403694088,1769489441360,-828.95270715,0.00016777,2]
[403694089,1769489441369,-1067.33005661,0.00016777,2]
[403694090,1769489441378,-420.0,0.0001678,2]
[403694091,1769489441387,-1680.0,0.00016865,2]
[403694092,1769489441396,-209.21500565,0.00016871,2]
[403694093,1769489441405,-1802.62498389,0.00016872,2]
[403694094,1769489441415,-300.0,0.00016872,2]
[403694095,1769489441424,-250.0,0.0001691,2]
[403694096,1769489441433,-195.0,0.0001691,2]
[403694097,1769489441442,-600.0,0.0001691,2]
[403694098,1769489441450,-600.0,0.0001691,2]
[403694099,1769489441459,-250.0,0.0001696,2]
[403694100,1769489441468,-150.00281334,0.00016964,2]
[403694101,1769489441477,-500.0,0.00016999,2]
[403694102,1769489441486,-500.0,0.00016999,2]
[403694103,1769489441495,-500.0,0.00016999,2]
[403694104,1769489441504,-500.0,0.00016999,2]
[403694105,1769489441513,-500.0,0.00016999,2]
[403694106,1769489441522,-500.0,0.00016999,2]
[403694107,1769489441531,-500.0,0.00016999,6]
[403694108,1769489441540,-536.94514641,0.00016999,2]
[403694109,1769489441550,-500.0,0.00016999,2]
[403694110,1769489441560,-500.0,0.00016999,2]
[403694111,1769489441569,-500.0,0.00016999,2]
[403694112,1769489441578,-828.95270715,0.00017058,2]
[403694113,1769489441587,-1067.33005661,0.00017058,2]
[403694114,1769489441596,-695.39793187,0.00017099,2]
[403694115,1769489441605,-151.0,0.00017099,2]
[403694116,1769489441614,-1000.0,0.00017099,2]
[403694117,1769489441624,-1000.0,0.00017099,2]
[403694118,1769489441634,-1000.0,0.00017099,2]
[403694119,1769489441643,-1000.0,0.00017099,2]
[403694120,1769489441654,-1000.0,0.00017099,2]
[403694121,1769489441666,-1000.0,0.00017099,2]
[403694122,1769489441676,-1000.0,0.00017099,2]
[403694123,1769489441685,-1000.0,0.00017099,2]
[403694124,1769489441694,-1000.0,0.00017099,2]
[403694125,1769489441703,-1000.0,0.00017099,2]
[403694126,1769489441712,-151.0,0.00017099,2]
[403694127,1769489441721,-1000.0,0.00017099,2]
[403694128,1769489441730,-1000.0,0.00017099,2]
[403694129,1769489441739,-500.0,0.00017099,2]
[403694130,1769489441748,-500.0,0.00017099,2]
[403694131,1769489441757,-500.0,0.00017099,2]
[403694132,1769489441766,-500.0,0.00017099,2]
[403694133,1769489441775,-500.0,0.00017099,2]
[403694134,1769489441784,-322.6107,0.00017099,2]
[403694135,1769489441793,-500.0,0.00017099,2]
[403694136,1769489441801,-500.0,0.00017099,2]
[403694137,1769489441810,-500.0,0.00017099,2]
[403694138,1769489441819,-500.0,0.00017099,2]
[403694139,1769489441828,-1000.0,0.00017099,2]
[403694140,1769489441837,-500.0,0.00017099,2]
[403694141,1769489441847,-1000.0,0.00017099,2]
[403694142,1769489441856,-500.0,0.00017099,2]
[403694143,1769489441864,-500.0,0.00017099,2]
[403694144,1769489441873,-1000.0,0.00017099,2]
[403694145,1769489441882,-500.0,0.00017099,2]
[403694146,1769489441891,-500.0,0.00017099,2]
[403694147,1769489441900,-1000.0,0.00017099,2]
[403694148,1769489441909,-823.77908852,0.00017099,2]
[403694149,1769489441917,-500.0,0.00017099,2]
[403694150,1769489441926,-500.0,0.00017099,2]
[403694151,1769489441935,-1000.0,0.00017099,2]
[403694152,1769489441944,-500.0,0.00017099,2]
[403694153,1769489441953,-1000.0,0.00017099,2]
[403694154,1769489441962,-500.0,0.00017099,2]
[403694155,1769489441974,-1000.0,0.00017099,2]
[403694156,1769489441983,-500.0,0.00017099,2]
[403694157,1769489441992,-1000.0,0.00017099,2]
[403694158,1769489442002,-500.0,0.00017099,2]
[403694159,1769489442012,-1107.82499032,0.00017099,2]
[403694160,1769489442021,-250.0,0.00017099,2]
[403694161,1769489442030,-174.61919141,0.00017099,2]
[403694162,1769489442042,-250.0,0.00017099,2]
[403694163,1769489442052,-250.0,0.00017099,2]
[403694164,1769489442061,-250.0,0.00017099,2]
[403694165,1769489442070,-250.0,0.00017099,2]
[403694166,1769489442079,-250.0,0.00017099,2]
[403694167,1769489442089,-250.0,0.00017099,2]
[403694168,1769489442098,-250.0,0.00017099,2]
[403694169,1769489442107,-250.0,0.00017099,2]
[403694170,1769489442116,-250.0,0.00017099,2]
[403694171,1769489442125,-337.47289019,0.00017099,2]
[403694172,1769489442134,-250.0,0.00017099,2]
[403694173,1769489442144,-371.86668183,0.00017099,2]
[403694174,1769489442153,-201.93286099,0.00017099,2]
[403694175,1769489442162,-3543.0,0.00017099,2]
[403694176,1769489442171,-3253.57751508,0.00017099,2]
[403694177,1769489442181,-201.93286099,0.00017099,2]
[403694178,1769489442190,-250.0,0.00017099,2]
[403694179,1769489442199,-250.0,0.00017099,2]
[403694180,1769489442209,-250.0,0.00017099,2]
[403694181,1769489442218,-250.0,0.00017099,2]
[403694182,1769489442227,-578.20924308,0.00017099,2]
[403694183,1769489442236,-250.0,0.00017099,2]
[403694184,1769489442246,-250.0,0.00017099,2]
[403694185,1769489442255,-250.0,0.00017099,2]
[403694186,1769489442264,-250.0,0.00017099,2]
[403694187,1769489442274,-250.0,0.00017099,2]
[403694188,1769489442283,-250.0,0.00017099,2]
[403694189,1769489442293,-250.0,0.00017099,2]
[403694190,1769489442302,-250.0,0.00017099,2]
[403694191,1769489442312,-209.40437684,0.00017154,2]
[403694192,1769489442321,-217.15233878,0.00017209,2]
[403694193,1769489442330,-500.0,0.00017237,2]
[403694194,1769489442340,-376.6589444,0.00017258,2]
[403694195,1769489442351,-225.18697532,0.00017264,2]
[403694196,1769489442362,-196.36905092,0.00017285,2]
[403694197,1769489442372,-233.51889341,0.00017319,2]
[403694198,1769489442382,-828.95270715,0.00017338,2]
[403694199,1769489442391,-1067.33005661,0.00017338,2]
[403694200,1769489442400,-347.0,0.0001737,2]
[403694201,1769489442409,-242.15909246,0.00017374,2]
[403694203,1769489442419,-251.11897888,0.00017429,2]
[403694204,1769489442428,-260.4103811,0.00017484,2]
[403694205,1769489442438,-567.60678567,0.00017514,2]
[403694206,1769489442447,-1001.3256505,0.00017514,2]
[403694207,1769489442458,-1497.92328779,0.00017514,2]
[403694208,1769489442467,-2026.7379,0.00017514,2]
[403694209,1769489442475,-166.67,0.00017519,2]
[403694210,1769489442486,-270.0455652,0.00017539,2]
[403694211,1769489442495,-280.03725112,0.00017594,2]
[403694212,1769489442506,-828.95270715,0.00017619,2]
[403694213,1769489442515,-1067.33005661,0.00017619,2]
[403694214,1769489442525,-854.2589148,0.00017647,2]
[403694216,1769489442534,-181.08010149,0.00017647,2]
[403694218,1769489442542,-217.15233879,0.00017647,2]
[403694220,1769489442553,-290.39862941,0.00017649,2]
[403694221,1769489442563,-301.1433787,0.00017704,2]
[403694222,1769489442573,-150.0,0.00017808,2]
[403694223,1769489442583,-2000.0,0.0001782,2]
[403694224,1769489442593,-2000.0,0.0001782,2]
[403694225,1769489442603,-2000.0,0.0001782,2]
[403694226,1769489442613,-2000.0,0.0001782,2]
[403694227,1769489442622,-2000.0,0.0001782,2]
[403694228,1769489442632,-2000.0,0.0001782,2]
[403694229,1769489442642,-200.0,0.00017856,2]
[403694230,1769489442652,-150.0,0.00017863,2]
[403694231,1769489442661,-376.6589444,0.00017865,2]
[403694232,1769489442671,-153.16101,0.00017878,2]
[403694233,1769489442680,-500.0,0.00017899,2]
[403694234,1769489442689,-500.0,0.00017899,2]
[403694235,1769489442698,-500.0,0.00017899,2]
[403694236,1769489442706,-500.0,0.00017899,2]
[403694237,1769489442715,-284.23649948,0.00017899,2]
[403694238,1769489442724,-500.0,0.00017899,2]
[403694239,1769489442733,-500.0,0.00017899,7]
[403694240,1769489442743,-500.0,0.00017899,2]
[403694241,1769489442754,-500.0,0.00017899,2]
[403694242,1769489442763,-500.0,0.00017899,2]
[403694243,1769489442773,-8868.9,0.000179,3]
[403694244,1769489442782,-10000.0,0.000179,2]
[403694245,1769489442791,-2012.150805,0.000179,3]
[403694246,1769489442800,-196.36905092,0.000179,2]
[403694247,1769489442809,-828.95270715,0.000179,2]
[403694248,1769489442818,-1067.33005661,0.000179,2]
[403694249,1769489442827,-886.32653699,0.000179,2]
[403694250,1769489442836,-649.50276679,0.000179,2]
[403694251,1769489442846,-223.42523209,0.000179,3]
[403694252,1769489442856,-1220.81253876,0.000179,2]
[403694253,1769489442866,-1220.81253875,0.000179,2]
[403694254,1769489442874,-1220.81253875,0.000179,2]
[403694255,1769489442883,-1220.81253875,0.000179,2]
[403694256,1769489442893,-8081.0,0.000179,2]
[403694257,1769489442901,-150.0,0.00017918,2]
[403694258,1769489442910,-150.0,0.00017972,2]
[403694259,1769489442920,-500.0,0.00017982,2]
[403694260,1769489442929,-607.94326117,0.00017989,2]
[403694261,1769489442938,-607.94326117,0.0001799,2]
[403694262,1769489442947,-607.94326117,0.0001799,2]
[403694263,1769489442956,-273.07574614,0.00017997,2]
[403694264,1769489442965,-517.93611071,0.00017998,2]
[403694265,1769489442979,-236.16272431,0.00017999,2]
[403694266,1769489442990,-11986.4182934,0.00017999,2]
[403694267,1769489443000,-1839.8679492,0.00017999,2]
[403694269,1769489443011,-500.0,0.00017999,2]
[403694270,1769489443021,-500.0,0.00017999,2]
[403694271,1769489443031,-500.0,0.00017999,2]
[403694272,1769489443040,-500.0,0.00017999,2]
[403694273,1769489443051,-500.0,0.00017999,2]
[403694274,1769489443061,-500.0,0.00017999,2]
[403694275,1769489443070,-500.0,0.00017999,2]
[403694276,1769489443079,-598.00979136,0.00017999,2]
[403694277,1769489443089,-500.0,0.00017999,2]
[403694278,1769489443098,-500.0,0.00017999,2]
[403694279,1769489443107,-500.0,0.00017999,2]
[403694282,1769489443116,-360.07461884,0.00017999,2]
[403694283,1769489443125,-215.57339081,0.00017999,2]
[403694284,1769489443134,-307.77367355,0.00017999,2]
[403694285,1769489443145,-500.0,0.00017999,2]
[403694286,1769489443154,-500.0,0.00017999,2]
[403694287,1769489443163,-500.0,0.00017999,2]
[403694288,1769489443172,-500.0,0.00017999,2]
[403694289,1769489443181,-500.0,0.00017999,2]
[403694290,1769489443190,-500.0,0.00017999,2]
[403694291,1769489443199,-500.0,0.00017999,2]
[403694292,1769489443208,-500.0,0.00017999,2]
[403694293,1769489443217,-500.0,0.00017999,2]
[403694294,1769489443227,-500.0,0.00017999,2]
[403694295,1769489443236,-500.0,0.00017999,2]
[403694296,1769489443246,-500.0,0.00017999,2]
[403694297,1769489443255,-500.0,0.00017999,2]
[403694298,1769489443264,-500.0,0.00017999,2]
[403694299,1769489443273,-500.0,0.00017999,2]
[403694300,1769489443283,-500.0,0.00017999,2]
[403694301,1769489443293,-405.73360712,0.00017999,2]
[403694302,1769489443302,-500.0,0.00017999,8]
[403694303,1769489443312,-500.0,0.00017999,9]
[403694304,1769489443322,-500.0,0.00017999,10]
[403694305,1769489443330,-500.0,0.00017999,11]
[403694306,1769489443339,-500.0,0.00017999,12]
[403694307,1769489443349,-500.0,0.00017999,13]
[403694308,1769489443358,-500.0,0.00017999,14]
[403694309,1769489443368,-500.0,0.00017999,15]
[403694310,1769489443378,-500.0,0.00017999,16]
[403694311,1769489443389,-500.0,0.00017999,17]
[403694312,1769489443400,-500.0,0.00017999,18]
[403694313,1769489443410,-500.0,0.00017999,19]
[403694314,1769489443420,-500.0,0.00017999,20]
[403694315,1769489443430,-500.0,0.00017999,21]
[403694316,1769489443440,-500.0,0.00017999,21]
[403694317,1769489443450,-500.0,0.00017999,21]
[403694318,1769489443459,-250.0,0.00017999,21]
[403694319,1769489443468,-1009.4029,0.00017999,2]
[403694320,1769489443480,-384.6317228,0.00017999,2]
[403694321,1769489443489,-5389.5577151,0.00017999,2]
[403694322,1769489443500,-500.0,0.00017999,2]
[403694323,1769489443510,-500.0,0.00017999,2]
[403694324,1769489443520,-618.26420438,0.00017999,2]
[403694325,1769489443529,-300.0,0.00017999,2]
[403694326,1769489443540,-300.0,0.00017999,2]
[403694327,1769489443550,-666.0,0.00017999,2]
[403694328,1769489443560,-300.0,0.00017999,2]
[403694329,1769489443571,-300.0,0.00017999,2]
[403694330,1769489443580,-300.0,0.00017999,2]
[403694331,1769489443590,-13689.96707346,0.00017999,2]
[403694332,1769489443600,-1606760.84929257,0.00018,2]
[403694333,1769489444827,-382.68486801,0.00018,2]
[403694335,1769489445416,-717.15169276,0.00015338,2]
[403694336,1769489445814,-69021.07074181,0.00015338,2]
[403694339,1769489447665,-295.65706098,0.00015338,2]
[403694340,1769489450393,-241.50529993,0.00015338,2]
[403694341,1769489454649,-151.69590403,0.00015338,2]
[403694342,1769489456780,-268.01500404,0.00015338,2]
[403694343,1769489458354,-211.06256738,0.00015338,2]
[403694344,1769489460481,-295.4201904,0.00015338,2]
[403694345,1769489462078,-262.34404567,0.00015337,2]
[403694346,1769489463611,-37.65595433,0.00015337,2]
[403694347,1769489463635,-150.0,0.00015337,2]
[403694348,1769489463663,-12.34404567,0.00015338,2]
[403694349,1769489466351,-177.2800995,0.00015338,2]
[403694350,1769489467949,-151.0,0.00015335,2]
[403694351,1769489467982,-79.77829554,0.00015338,2]
[403694352,1769489471268,-483.446138,0.00015338,2]
[403694353,1769489472954,-440.46022887,0.00015338,2]
[403694354,1769489474502,-373.69188948,0.00015338,2]
[403694355,1769489476594,-165.59896283,0.00015338,2]
[403694356,1769489479842,-219.23544984,0.00015338,2]
[403694357,1769489481934,-167.10986205,0.00015338,2]
[403694370,1769489484667,-254.30682026,0.00015338,2]
[403694379,1769489486854,-237.47072118,0.00015338,2]
[403694380,1769489488970,-499.45205223,0.00015338,2]
[403694381,1769489491189,-183.7866476,0.00015338,2]
[403694382,1769489492788,166.195,0.00015031,2]
[403694383,1769489492833,1158.901,0.00015031,2]
[403694384,1769489492932,-272.39166125,0.00015338,2]
[403694385,1769489494436,-210.35338043,0.00015338,2]
[403694386,1769489496030,-216.85110539,0.00015338,2]
[403694387,1769489496729,331.58108286,0.00015238,2]
[403694388,1769489497834,-162.06320131,0.00015338,2]
[403694389,1769489500861,404.57192016,0.0001472,2]
[403694390,1769489501641,-217.67794604,0.00015338,2]
[403694391,1769489503487,-280.40560413,0.00015338,2]
[403694392,1769489505273,-403.58045376,0.00015338,2]
[403694393,1769489507703,-403.37124599,0.00015338,2]
[403694394,1769489509613,-282.32205396,0.00015338,2]
[403694395,1769489512427,-180.10092261,0.00015338,2]
[403694396,1769489515188,-281.43583273,0.00015338,2]
[403694397,1769489519711,-234.25708548,0.00015338,2]
[403694398,1769489521360,-155.24071074,0.00015338,2]
[403694399,1769489523237,-164.28777937,0.00015338,2]
[403694400,1769489525782,-472.55787541,0.00015338,2]